bitfinex/quotes_SOLUSD_20250204
["timestamp","ask_amount","ask_price","bid_price","bid_amount"]
[1738700508438,37.60604963,205.81,205.7,36.88164994]
[1738700508737,36.88164994,205.93,205.79,36.88164994]
[1738700508926,36.88164994,205.93,205.83,36.88164994]
[1738700509137,36.88164994,205.97,205.87,36.88164994]
[1738700509306,36.88164994,205.92,205.81,36.88164994]
[1738700509637,36.88164994,206.0,205.89,36.88164994]
[1738700509931,36.88164994,205.92,205.83,36.88164994]
[1738700510241,0.37647,205.95,205.85,36.88164994]
[1738700510539,42.45954963,206.04,205.93,36.88164994]
[1738700510749,6.64817085,205.99,205.93,13.31416215]
[1738700510926,0.12549,205.98,205.85,7.9938]
[1738700511235,6.64817085,205.99,205.9,36.88164994]
[1738700511448,6.64817085,206.03,205.95,36.88164994]
[1738700511649,6.64817085,206.03,206.02,36.88164994]
[1738700512017,6.64817085,206.03,205.94,36.88164994]
[1738700512345,0.12549,205.99,205.92,36.88164994]
[1738700512551,41.73544994,206.03,205.92,36.88164994]
[1738700512753,36.88164994,206.12,205.93,0.72823988]
[1738700512922,0.72439969,206.13,205.93,0.72823988]
[1738700512923,0.72439969,206.13,206.04,36.88164994]
[1738700513263,36.88164994,206.14,206.04,36.88164994]
[1738700513419,28.37465118,206.2,206.11,36.88164994]
[1738700513620,13.31512095,206.21,206.11,36.88164994]
[1738700513850,0.12549,206.2,206.11,36.88164994]
[1738700514049,13.31512095,206.21,206.15,36.88164994]
[1738700514346,13.31512095,206.21,206.1,36.88164994]
[1738700514347,1.21153844,206.17,206.1,36.88164994]
[1738700514525,1.21153844,206.17,206.1,37.60910169]
[1738700514717,1.21153844,206.17,206.13,20.0]
[1738700514926,1.21153844,206.17,206.14,0.72735308]
[1738700515122,1.21153844,206.17,206.16,36.88164994]
[1738700515321,0.063,206.23,206.19,20.0]
[1738700515624,0.063,206.23,206.22,36.88164994]
[1738700515824,18.2593834,206.24,206.22,42.73074994]
[1738700516022,0.063,206.32,206.26,22.0]
[1738700516224,0.063,206.32,206.31,20.0]
[1738700516428,1.43266682,206.36,206.31,57.60835807]
[1738700516625,1.43266682,206.36,206.35,36.88164994]
[1738700516831,39.8890251,206.52,206.38,20.0]
[1738700517055,36.88164994,206.51,206.42,36.88164994]
[1738700517363,2.42309573,206.42,206.4,1.0]
[1738700517687,39.8890251,206.52,206.44,1.0]
[1738700517827,39.8890251,206.52,206.48,20.0]
[1738700518025,39.8890251,206.52,206.49,36.88164994]
[1738700518355,39.8890251,206.52,206.51,56.88164994]
[1738700518652,39.8890251,206.52,206.44,4.8438]
[1738700518653,39.8890251,206.52,206.5,36.88164994]
[1738700518828,39.8890251,206.52,206.49,23.01329495]
[1738700519434,0.063,206.53,206.51,65.75003909]
[1738700519640,0.063,206.53,206.52,36.88164994]
[1738700519837,36.88164994,206.73,206.56,1.0]
[1738700520074,36.88164994,206.69,206.6,36.88164994]
[1738700520257,36.88164994,206.71,206.6,36.88164994]
[1738700520571,36.88164994,206.75,206.66,36.88164994]
[1738700520875,36.88164994,206.68,206.56,36.88164994]
[1738700521036,10.81567531,206.78,206.67,9.86284069]
[1738700521240,36.88164994,206.73,206.67,9.86284069]
[1738700521558,0.25098,206.72,206.67,9.86284069]
[1738700521738,36.88164994,206.75,206.65,36.88164994]
[1738700522140,0.25098,206.74,206.65,36.88164994]
[1738700522436,0.12549,206.82,206.61,0.72558309]
[1738700522437,36.88164994,206.77,206.67,36.88164994]
[1738700522637,4.8347,206.84,206.75,36.88164994]
[1738700522856,36.88164994,206.87,206.77,36.88164994]
[1738700523179,41.71564994,206.87,206.77,36.88164994]
[1738700523343,36.88164994,206.85,206.75,36.88164994]
[1738700523550,36.88164994,206.81,206.78,9.86284069]
[1738700523753,24.64846339,206.86,206.78,9.86284069]
[1738700523945,41.71464994,206.91,206.81,36.88164994]
[1738700524140,24.71690557,206.9,206.83,36.88164994]
[1738700524561,24.71690557,206.9,206.81,36.88164994]
[1738700524764,36.88164994,206.87,206.84,9.86284069]
[1738700524967,36.88164994,206.85,206.84,9.86284069]
[1738700525272,1.25098,206.81,206.66,50.0321042]
[1738700525441,36.88164994,206.71,206.66,13.15045426]
[1738700525851,0.12549,206.7,206.66,13.15045426]
[1738700526164,4.8371,206.74,206.66,13.15045426]
[1738700526339,36.88164994,206.77,206.67,37.60741223]
[1738700526542,24.24435596,206.82,206.73,36.88164994]
[1738700526759,24.24435596,206.82,206.75,36.88164994]
[1738700527072,0.25098,206.78,206.69,36.88164994]
[1738700527243,36.88164994,206.83,206.73,36.88164994]
[1738700527440,3.30342658,206.85,206.75,36.88164994]
[1738700527642,24.27019677,206.91,206.81,36.88164994]
[1738700527857,24.27019677,206.91,206.83,36.88164994]
[1738700528063,36.88164994,206.86,206.77,36.88164994]
[1738700528247,36.88164994,206.8,206.68,0.72530834]
[1738700528445,36.88164994,206.86,206.77,36.88164994]
[1738700528653,36.88164994,206.88,206.79,36.88164994]
[1738700528864,24.27019677,206.91,206.81,36.88164994]
[1738700529066,24.27391218,206.89,206.82,0.5]
[1738700529372,0.12549,206.88,206.82,0.5]
[1738700529539,37.00713994,206.88,206.82,0.5]
[1738700529746,4.8327,206.93,206.83,36.88164994]
[1738700529957,24.27019677,206.91,206.82,37.38164994]
[1738700530157,61.59855551,206.9,206.82,0.5]
[1738700530355,0.25098,206.85,206.82,0.5]
[1738700530657,36.88164994,206.9,206.82,0.5]
[1738700530862,66.07298108,206.94,206.83,13.15045426]
[1738700531065,41.71394994,206.94,206.84,36.88164994]
[1738700531436,4.832,206.96,206.84,0.72496232]
[1738700531640,1.063,207.05,206.86,20.0]
[1738700531641,4.8304,207.02,206.86,20.0]
[1738700531874,4.8304,207.02,206.92,36.88164994]
[1738700531875,41.71204994,207.02,206.92,36.88164994]
[1738700532043,41.71204994,207.02,206.83,22.22155426]
[1738700532044,36.88164994,206.94,206.84,36.88164994]
[1738700532246,1.0,206.99,206.84,24.01329721]
[1738700532577,36.88164994,206.85,206.83,13.15045426]
[1738700532761,36.88164994,206.87,206.83,13.15045426]
[1738700532955,36.88164994,206.89,206.83,13.15045426]
[1738700533152,0.25098,206.86,206.83,13.15045426]
[1738700533347,37.13262994,206.84,206.83,5.426e-05]
[1738700533543,36.88164994,206.84,206.82,5.426e-05]
[1738700533767,4.8348,206.83,206.82,5.426e-05]
[1738700534069,4.8348,206.83,206.68,12.0523]
[1738700534070,0.25098,206.79,206.67,55.8871984]
[1738700534369,36.88164994,206.69,206.59,36.88164994]
[1738700534566,36.88164994,206.71,206.61,36.88164994]
[1738700534762,20.0,206.8,206.69,36.88164994]
[1738700535072,36.88164994,206.81,206.72,36.88164994]
[1738700535257,0.12549,206.78,206.7,36.88164994]
[1738700535576,16.922,206.83,206.62,0.72572688]
[1738700535577,36.88164994,206.81,206.72,36.88164994]
[1738700535948,37.13262994,206.77,206.68,36.88164994]
[1738700536277,0.12549,206.7,206.67,7.49633311]
[1738700536479,36.88164994,206.75,206.67,7.49633311]
[1738700536683,0.12549,206.68,206.67,7.49633311]
[1738700536854,37.38360994,206.68,206.67,3.311e-05]
[1738700537575,0.50196,206.64,206.6,29.98533245]
[1738700537875,41.97262994,206.61,206.6,3.245e-05]
[1738700538071,80.85427988,206.61,206.6,3.245e-05]
[1738700538285,80.85427988,206.61,206.47,24.28732829]
[1738700538286,1.50196,206.54,206.53,9.868e-05]
[1738700538486,0.25098,206.47,206.35,24.04210246]
[1738700538674,0.12549,206.42,206.35,24.04210246]
[1738700538978,0.25098,206.4,206.31,24.48509173]
[1738700539165,0.12549,206.38,206.31,24.48509173]
[1738700539361,0.12549,206.34,206.27,24.45088215]
[1738700539681,0.12549,206.34,206.17,12.1402]
[1738700539682,0.12549,206.32,206.25,36.88164994]
[1738700539982,41.72834994,206.33,206.23,36.88164994]
[1738700540281,41.72764994,206.36,206.26,36.88164994]
[1738700540451,0.25098,206.3,206.24,36.88164994]
[1738700540650,2.93830229,206.31,206.24,36.88164994]
[1738700540985,2.93830229,206.31,206.3,36.88164994]
[1738700541352,2.93830229,206.33,206.3,73.76329988]
[1738700541559,2.93830229,206.33,206.32,38.13262994]
[1738700541774,5.8804822,206.48,206.37,5.8456]
[1738700542077,5.8804822,206.48,206.47,36.88164994]
[1738700542857,64.57987239,206.56,206.55,36.88164994]
[1738700543480,6.65633745,206.67,206.55,37.88164994]
[1738700543654,6.65633745,206.67,206.62,36.88164994]
[1738700543856,6.65633745,206.67,206.64,36.88164994]
[1738700544152,6.65633745,206.67,206.54,13.104]
[1738700544153,6.65633745,206.67,206.63,36.88164994]
[1738700544366,6.65633745,206.67,206.65,36.88164994]
[1738700544781,6.65633745,206.67,206.66,0.72561186]
[1738700544967,6.65633745,206.67,206.65,36.88164994]
[1738700544968,6.65633745,206.67,206.65,37.60716166]
[1738700545278,13.3126749,206.71,206.65,37.60716166]
[1738700545279,13.3126749,206.71,206.66,0.72546013]
[1738700545476,13.3126749,206.71,206.7,73.76329988]
[1738700545985,3.63893238,206.8,206.79,36.88164994]
[1738700546289,0.25098,206.8,206.68,36.88164994]
[1738700546469,0.12549,206.72,206.64,36.88164994]
[1738700546664,36.88164994,206.73,206.64,36.88164994]
[1738700546877,36.88164994,206.71,206.62,36.88164994]
[1738700547081,0.12549,206.72,206.64,36.88164994]
[1738700547282,0.25098,206.72,206.64,36.88164994]
[1738700547484,0.25098,206.68,206.6,36.88164994]
[1738700547669,0.12549,206.66,206.58,36.88164994]
[1738700547865,0.12549,206.66,206.52,12.4187]
[1738700547866,36.88164994,206.73,206.62,36.88164994]
[1738700548180,36.88164994,206.66,206.57,36.88164994]
[1738700548385,0.12549,206.61,206.53,36.88164994]
[1738700548678,0.12549,206.55,206.45,36.88164994]
[1738700548991,36.88164994,206.52,206.43,36.88164994]
[1738700549368,37.00713994,206.54,206.53,0.03]
[1738700549569,0.50196,206.53,206.39,36.88164994]
[1738700549772,37.00713994,206.41,206.33,36.88164994]
[1738700550078,37.13262994,206.36,206.26,36.88164994]
[1738700550276,36.88164994,206.36,206.25,36.88164994]
[1738700550493,36.88164994,206.38,206.34,3.56741184]
[1738700550662,1.0,206.44,206.34,3.56741184]
[1738700550663,36.88164994,206.43,206.34,3.56741184]
[1738700550869,41.72504994,206.47,206.37,36.88164994]
[1738700551070,0.12549,206.37,206.34,3.56741184]
[1738700551368,36.88164994,206.35,206.34,3.56741184]
[1738700551566,36.88164994,206.35,206.13,5.76200163]
[1738700551567,20.50196,206.32,206.16,36.88164994]
[1738700551893,42.10701994,206.23,206.14,36.88164994]
[1738700552091,42.23250994,206.23,206.13,4.76200163]
[1738700552405,0.12549,206.16,206.13,4.76200163]
[1738700552732,1.0,206.18,206.13,4.76200163]
[1738700552733,37.38360994,206.14,206.13,4.76200163]
[1738700552908,36.88164994,206.14,206.05,60.95690188]
[1738700553064,20.0,206.11,206.05,24.07525194]
[1738700553393,20.0,206.11,206.02,24.06362651]
[1738700553394,36.88164994,206.08,206.02,24.06362651]
[1738700553569,0.12549,206.13,206.01,10.71051173]
[1738700553570,36.88164994,206.15,206.05,60.95690188]
[1738700553777,36.88164994,206.19,206.11,36.88164994]
[1738700554096,1.0,206.27,206.17,36.88164994]
[1738700554097,36.88164994,206.27,206.17,36.88164994]
[1738700554299,36.88164994,206.27,206.12,0.7276263]
[1738700554300,36.88164994,206.31,206.22,36.88164994]
[1738700554488,36.88164994,206.33,206.24,36.88164994]
[1738700554693,1.0,206.41,206.28,36.88164994]
[1738700554694,36.88164994,206.37,206.28,36.88164994]
[1738700554882,36.88164994,206.39,206.3,36.88164994]
[1738700555278,36.88164994,206.39,206.23,1.0]
[1738700555279,36.88164994,206.43,206.34,36.88164994]
[1738700555481,0.25098,206.44,206.36,36.88164994]
[1738700555798,36.88164994,206.53,206.42,36.88164994]
[1738700555972,36.88164994,206.49,206.4,36.88164994]
[1738700556301,36.88164994,206.51,206.4,36.88164994]
[1738700556705,12.1004,206.61,206.4,36.88164994]
[1738700556706,36.88164994,206.57,206.48,36.88164994]
[1738700557173,36.88164994,206.57,206.34,16.9622]
[1738700557174,36.88164994,206.49,206.38,36.88164994]
[1738700557378,36.88164994,206.44,206.34,41.72794994]
[1738700557585,0.25098,206.47,206.38,36.88164994]
[1738700557875,36.88164994,206.52,206.42,36.88164994]
[1738700558077,4.8409,206.57,206.36,4.8459]
[1738700558078,36.88164994,206.58,206.48,36.88164994]
[1738700558280,36.88164994,206.58,206.5,36.88164994]
[1738700558481,36.88164994,206.6,206.5,36.88164994]
[1738700558774,36.88164994,206.62,206.52,36.88164994]
[1738700559000,36.88164994,206.66,206.56,36.88164994]
[1738700559386,36.88164994,206.68,206.58,36.88164994]
[1738700559591,36.88164994,206.68,206.6,36.88164994]
[1738700559801,36.88164994,206.66,206.58,36.88164994]
[1738700560005,36.88164994,206.6,206.5,36.88164994]
[1738700560225,36.88164994,206.57,206.48,36.88164994]
[1738700560389,0.25098,206.56,206.48,36.88164994]
[1738700560588,0.25098,206.54,206.44,36.88164994]
[1738700560789,0.25098,206.54,206.46,36.88164994]
[1738700560981,36.88164994,206.55,206.46,36.88164994]
[1738700561697,36.94464994,206.57,206.46,36.88164994]
[1738700562000,36.94464994,206.57,206.48,36.88164994]
[1738700562205,0.063,206.57,206.48,36.88164994]
[1738700562809,36.94464994,206.57,206.48,36.88164994]
[1738700563007,36.94464994,206.57,206.38,1.0]
[1738700563008,36.88164994,206.53,206.44,36.88164994]
[1738700563214,0.25098,206.48,206.39,36.88164994]
[1738700563386,36.88164994,206.45,206.35,36.88164994]
[1738700563797,37.00713994,206.43,206.24,1.0]
[1738700564000,36.88164994,206.39,206.28,36.88164994]
[1738700564316,36.88164994,206.31,206.22,36.88164994]
[1738700564485,0.25098,206.3,206.22,36.88164994]
[1738700564804,0.25098,206.3,206.13,1.03]
[1738700564805,20.0,206.2,206.13,0.03]
[1738700565002,36.88164994,206.18,206.14,23.71]
[1738700565205,36.88164994,206.24,206.14,73.77449597]
[1738700565595,0.37647,206.23,206.14,73.77449597]
[1738700565801,36.88164994,206.24,206.14,73.77449597]
[1738700565992,41.72994994,206.26,206.16,36.88164994]
[1738700566311,74.57154994,206.4,206.22,36.88164994]
[1738700566312,41.72844994,206.32,206.22,36.88164994]
[1738700566504,41.72814994,206.34,206.24,36.88164994]
[1738700566685,36.88164994,206.36,206.26,36.88164994]
[1738700567007,36.88164994,206.4,206.3,36.88164994]
[1738700567185,36.88164994,206.42,206.32,36.88164994]
[1738700567387,7.28,206.43,206.34,36.88164994]
[1738700567615,37.88164994,206.5,206.4,36.88164994]
[1738700567616,36.88164994,206.5,206.4,36.88164994]
[1738700567791,36.88164994,206.52,206.42,36.88164994]
[1738700567993,36.88164994,206.54,206.44,36.88164994]
[1738700568317,0.063,206.57,206.52,36.88164994]
[1738700568484,0.063,206.57,206.54,36.88164994]
[1738700568693,0.063,206.57,206.52,36.88164994]
[1738700568919,0.063,206.57,206.5,36.88164994]
[1738700569236,0.063,206.57,206.52,36.88164994]
[1738700569420,0.063,206.57,206.54,36.88164994]
[1738700569718,0.063,206.57,206.39,1.0]
[1738700569719,0.50196,206.55,206.41,36.88164994]
[1738700569925,0.50196,206.53,206.33,0.72658919]
[1738700570100,36.88164994,206.5,206.39,36.88164994]
[1738700570413,41.72294994,206.56,206.45,36.88164994]
[1738700570620,0.063,206.57,206.47,36.88164994]
[1738700570928,0.063,206.57,206.51,36.88164994]
[1738700571106,0.063,206.57,206.53,36.88164994]
[1738700571711,0.063,206.57,206.55,36.88164994]
[1738700572113,0.063,206.57,206.49,36.88164994]
[1738700572427,36.94464994,206.57,206.47,36.88164994]
[1738700572632,36.88164994,206.55,206.41,4.8446]
[1738700572793,0.50196,206.5,206.43,36.88164994]
[1738700572987,0.50196,206.5,206.39,36.88164994]
[1738700572988,36.88164994,206.49,206.39,36.88164994]
[1738700573195,36.88164994,206.53,206.43,36.88164994]
[1738700573400,36.88164994,206.51,206.41,36.88164994]
[1738700573686,36.88164994,206.47,206.37,36.88164994]
[1738700573899,0.50196,206.46,206.37,36.88164994]
[1738700574124,0.25098,206.4,206.31,36.88164994]
[1738700574318,0.25098,206.38,206.29,36.88164994]
[1738700574490,36.88164994,206.43,206.33,36.88164994]
[1738700574689,36.88164994,206.43,206.25,0.72702016]
[1738700574690,4.8437,206.45,206.4,36.88164994]
[1738700574890,48.98854994,206.5,206.42,36.88164994]
[1738700574891,36.88164994,206.5,206.42,36.88164994]
[1738700575126,41.72284994,206.56,206.47,36.88164994]
[1738700575321,4.8412,206.56,206.47,36.88164994]
[1738700575894,0.063,206.57,206.47,36.88164994]
[1738700576201,0.063,206.57,206.49,36.88164994]
[1738700576405,0.56496,206.57,206.49,36.88164994]
[1738700576601,0.063,206.57,206.47,0.72632902]
[1738700576915,0.063,206.57,206.54,36.88164994]
[1738700577292,0.063,206.57,206.48,36.88164994]
[1738700577493,37.00713994,206.56,206.46,36.88164994]
[1738700577818,0.063,206.57,206.54,36.88164994]
[1738700578117,0.063,206.57,206.52,36.88164994]
[1738700578326,0.50196,206.56,206.47,36.88164994]
[1738700578535,0.50196,206.52,206.43,36.88164994]
[1738700578717,0.50196,206.52,206.4,4.8448]
[1738700578718,36.88164994,206.5,206.41,36.88164994]
[1738700578900,36.88164994,206.54,206.45,36.88164994]
[1738700579224,0.25098,206.5,206.43,36.88164994]
[1738700579426,0.25098,206.46,206.31,0.72645775]
[1738700579598,0.063,206.57,206.35,36.88164994]
[1738700579599,0.12549,206.43,206.35,36.88164994]
[1738700579919,0.25098,206.37,206.31,36.88164994]
[1738700580105,0.12549,206.39,206.33,36.88164994]
[1738700580307,36.88164994,206.48,206.31,1.0]
[1738700580621,36.88164994,206.53,206.43,36.88164994]
[1738700580810,0.063,206.57,206.51,36.88164994]
[1738700581116,0.063,206.57,206.56,36.88164994]
[1738700581919,36.94464994,206.78,206.59,20.0]
[1738700582117,4.8364,206.77,206.69,36.88164994]
[1738700582324,0.063,206.78,206.75,36.88164994]
[1738700582503,0.063,206.78,206.77,36.88164994]
[1738700583504,0.063,206.78,206.73,36.88164994]
[1738700583706,36.88164994,206.77,206.67,36.88164994]
[1738700584027,0.12549,206.68,206.61,36.88164994]
[1738700584193,0.12549,206.68,206.59,36.88164994]
[1738700584400,4.8375,206.72,206.65,36.88164994]
[1738700584723,37.38360994,206.66,206.55,36.88164994]
[1738700584932,0.12549,206.61,206.51,36.88164994]
[1738700585232,36.88164994,206.62,206.45,36.88164994]
[1738700585233,0.37647,206.54,206.45,36.88164994]
[1738700585430,0.37647,206.54,206.41,4.8445]
[1738700585431,36.88164994,206.65,206.52,36.88164994]
[1738700585597,36.88164994,206.69,206.6,36.88164994]
[1738700585794,36.88164994,206.63,206.54,36.88164994]
[1738700586025,36.88164994,206.63,206.53,36.88164994]
[1738700586238,36.88164994,206.67,206.57,36.88164994]
[1738700586401,4.8381,206.69,206.61,36.88164994]
[1738700586612,4.8363,206.77,206.67,36.88164994]
[1738700586909,4.8354,206.81,206.72,36.88164994]
[1738700587109,4.8343,206.86,206.76,36.88164994]
[1738700587306,19.424178,206.84,206.76,36.88164994]
[1738700587629,0.063,206.84,206.77,37.60692071]
[1738700587831,0.063,206.84,206.77,37.88164994]
[1738700588029,0.063,206.84,206.77,4.8362]
[1738700588228,0.063,206.84,206.76,36.88164994]
[1738700588718,0.37647,206.82,206.76,36.88164994]
[1738700588919,36.88164994,206.81,206.72,36.88164994]
[1738700589131,0.50196,206.72,206.64,36.88164994]
[1738700589334,0.50196,206.76,206.6,36.88164994]
[1738700589335,0.25098,206.67,206.6,36.88164994]
[1738700589640,36.88164994,206.82,206.61,0.72600506]
[1738700589843,37.88164994,206.82,206.72,36.88164994]
[1738700590016,0.12549,206.71,206.56,5.56669321]
[1738700590215,0.50196,206.69,206.51,4.8423]
[1738700590432,0.50196,206.69,206.48,1.0]
[1738700590433,0.50196,206.69,206.49,4.8427]
[1738700590650,0.50196,206.69,206.49,0.72622283]
[1738700590830,0.50196,206.69,206.48,0.72612744]
[1738700591142,0.37647,206.64,206.55,36.88164994]
[1738700591314,0.12549,206.64,206.59,36.88164994]
[1738700591514,0.12549,206.64,206.5,37.60766154]
[1738700591515,20.12549,206.64,206.57,36.88164994]
[1738700591720,36.88164994,206.6,206.49,36.88164994]
[1738700591916,0.12549,206.56,206.47,36.88164994]
[1738700592122,0.37647,206.57,206.37,12.1141]
[1738700592123,4.8405,206.59,206.49,36.88164994]
[1738700592321,36.88164994,206.66,206.57,36.88164994]
[1738700592544,4.8381,206.69,206.61,36.88164994]
[1738700592781,36.88164994,206.73,206.63,36.88164994]
[1738700593036,4.8367,206.76,206.67,36.88164994]
[1738700593347,0.50196,206.7,206.61,36.88164994]
[1738700593665,0.50196,206.64,206.55,36.88164994]
[1738700593819,1.0,206.69,206.45,0.72597552]
[1738700593820,0.50196,206.62,206.53,36.88164994]
[1738700594026,4.8405,206.59,206.51,36.88164994]
[1738700594232,36.88164994,206.53,206.43,36.88164994]
[1738700594435,4.8405,206.59,206.41,36.88164994]
[1738700594436,0.12549,206.49,206.41,36.88164994]
[1738700594763,0.12549,206.43,206.36,0.03]
[1738700594933,0.37647,206.42,206.36,0.03]
[1738700595129,0.50196,206.39,206.36,0.03]
[1738700595464,0.12549,206.37,206.36,0.03]
[1738700595663,36.88164994,206.51,206.38,20.0]
[1738700595843,36.88164994,206.55,206.46,36.88164994]
[1738700596027,41.1442,206.59,206.36,0.03]
[1738700596028,0.50196,206.45,206.36,0.03]
[1738700596231,0.50196,206.41,206.36,0.03]
[1738700596749,4.8435,206.46,206.39,36.88164994]
[1738700596953,36.88164994,206.49,206.41,36.88164994]
[1738700596954,4.8429,206.49,206.41,36.88164994]
[1738700597258,0.50196,206.39,206.25,36.88164994]
[1738700597563,0.50196,206.34,206.25,36.88164994]
[1738700597792,36.88164994,206.29,206.2,36.88164994]
[1738700597928,1.0,206.34,206.13,0.03]
[1738700597929,0.50196,206.26,206.13,0.03]
[1738700598130,0.25098,206.19,206.13,0.03]
[1738700598364,0.12549,206.14,206.13,0.03]
[1738700598536,0.50196,206.11,206.01,36.88164994]
[1738700598736,0.12549,206.05,205.97,36.88164994]
[1738700599141,0.25098,206.05,205.97,36.88164994]
[1738700599354,0.12549,206.07,205.98,36.88164994]
[1738700599664,0.12549,206.06,206.0,36.88164994]
[1738700599865,36.88164994,206.13,206.02,36.88164994]
[1738700600053,36.88164994,206.17,206.07,36.88164994]
[1738700600237,4.8501,206.18,206.11,36.88164994]
[1738700600564,4.8497,206.2,206.11,36.88164994]
[1738700600746,36.88164994,206.25,206.15,36.88164994]
[1738700600947,41.72984994,206.27,206.17,36.88164994]
[1738700601363,36.88164994,206.31,206.21,36.88164994]
[1738700601569,36.88164994,206.27,206.17,36.88164994]
[1738700601880,0.50196,206.24,206.15,36.88164994]
[1738700602247,41.47456177,206.33,206.21,36.88164994]
[1738700602248,36.88164994,206.29,206.21,36.88164994]
[1738700602472,36.88164994,206.38,206.28,36.88164994]
[1738700602672,34.36514656,206.4,206.3,34.36514656]
[1738700603179,34.36514656,206.42,206.32,34.36514656]
[1738700603340,1.0,206.51,206.22,1.0]
[1738700603341,34.36514656,206.48,206.39,34.36514656]
[1738700603547,34.36514656,206.48,206.25,0.72683125]
[1738700603548,34.36514656,206.43,206.33,34.36514656]
[1738700603749,34.36514656,206.43,206.25,34.36514656]
[1738700603750,0.25098,206.32,206.25,34.36514656]
[1738700603951,0.25098,206.27,206.14,0.7271549]
[1738700604184,0.25098,206.27,206.14,4.851]
[1738700604371,4.8454,206.38,206.18,1.0]
[1738700604573,12.1093,206.46,206.27,1.0]
[1738700604774,4.843,206.48,206.28,0.7268912]
[1738700605085,34.36514656,206.5,206.4,34.36514656]
[1738700605313,34.36514656,206.46,206.36,34.36514656]
[1738700605445,34.36514656,206.46,206.22,20.0]
[1738700605446,34.36514656,206.44,206.34,34.36514656]
[1738700605649,34.36514656,206.4,206.31,34.36514656]
[1738700605869,1.0,206.47,206.25,34.36514656]
[1738700605870,0.12549,206.32,206.25,34.36514656]
[1738700606183,0.12549,206.26,206.15,0.72725244]
[1738700606485,4.8459,206.36,206.14,18.70590947]
[1738700606648,17.9606,206.36,206.15,0.7273585]
[1738700606847,4.8459,206.36,206.15,0.7273585]
[1738700607050,34.36514656,206.29,206.2,34.36514656]
[1738700607279,34.36514656,206.31,206.22,34.36514656]
[1738700607492,34.36514656,206.29,206.18,34.36514656]
[1738700607803,0.12549,206.28,206.22,34.36514656]
[1738700607992,34.36514656,206.26,206.16,34.36514656]
[1738700608281,1.0,206.3,206.2,34.36514656]
[1738700608282,34.36514656,206.3,206.2,34.36514656]
[1738700608463,34.36514656,206.3,206.14,4.8508]
[1738700608464,34.36514656,206.34,206.24,34.36514656]
[1738700608666,34.36514656,206.42,206.32,34.36514656]
[1738700608876,4.8445,206.42,206.32,34.36514656]
[1738700609086,34.36514656,206.34,206.21,34.36514656]
[1738700609276,1.0,206.39,206.15,0.72732316]
[1738700609277,0.37647,206.28,206.15,0.72732316]
[1738700609470,34.36514656,206.35,206.25,34.36514656]
[1738700609675,34.36514656,206.37,206.27,34.36514656]
[1738700609897,0.50196,206.36,206.27,34.36514656]
[1738700610190,34.36514656,206.35,206.25,34.36514656]
[1738700610381,0.25098,206.32,206.25,34.36514656]
[1738700610590,34.36514656,206.35,206.25,34.36514656]
[1738700610976,0.25098,206.26,206.2,39.21474656]
[1738700611175,0.12549,206.2,206.18,0.03]
[1738700611390,0.50196,206.19,206.18,0.03]
[1738700611593,0.37647,206.19,206.18,0.03]
[1738700611792,7.26,206.32,206.18,34.39514656]
[1738700612008,0.063,206.36,206.27,34.36514656]
[1738700612182,0.063,206.36,206.31,34.36514656]
[1738700612367,0.063,206.36,206.29,34.36514656]
[1738700612573,0.12549,206.32,206.25,34.36514656]
[1738700612970,0.25098,206.33,206.27,34.36514656]
[1738700613271,34.36514656,206.34,206.23,34.36514656]
[1738700613497,0.063,206.36,206.29,34.36514656]
[1738700613678,0.063,206.36,206.19,1.0]
[1738700613679,34.86710656,206.35,206.25,34.36514656]
[1738700613989,0.50196,206.32,206.23,34.36514656]
[1738700614299,0.50196,206.24,206.18,0.03]
[1738700614474,16.968,206.27,206.18,0.03]
[1738700614475,0.37647,206.2,206.18,0.03]
[1738700614677,39.21314656,206.27,206.18,0.03]
[1738700614879,34.36514656,206.2,206.18,0.03]
[1738700615091,0.50196,206.19,206.18,0.03]
[1738700616697,34.36514656,206.27,206.18,0.03]
[1738700616902,34.36514656,206.21,206.18,0.03]
[1738700617071,0.50196,206.18,206.03,34.36514656]
[1738700617274,0.50196,206.12,206.03,34.36514656]
[1738700617473,0.12549,206.08,206.01,34.36514656]
[1738700617673,0.37647,206.14,206.05,34.36514656]
[1738700617878,34.36514656,206.22,206.11,34.36514656]
[1738700618100,20.3576,206.25,206.09,34.36514656]
[1738700618101,34.36514656,206.18,206.09,34.36514656]
[1738700618275,0.37647,206.15,206.07,34.36514656]
[1738700618481,34.36514656,206.2,206.11,34.36514656]